bitfinex/quotes_SOLUSD_20250107
["timestamp","ask_amount","ask_price","bid_price","bid_amount"]
[1736254909620,0.70291641,213.49,213.4,26.0]
[1736254909826,0.70291641,213.49,213.4,28.0]
[1736254910511,17.8868,213.5,213.4,28.0]
[1736254913648,17.8868,213.5,213.4,26.0]
[1736254913819,17.8868,213.5,213.4,28.0]
[1736254914442,17.8868,213.5,213.41,20.0]
[1736254914651,2.29411641,213.49,213.41,20.0]
[1736254915748,2.29411641,213.49,213.4,2.0]
[1736254916252,2.29411641,213.49,213.38,138.7]
[1736254916621,11.7106,213.48,213.38,138.7]
[1736254916939,0.70291641,213.47,213.38,138.7]
[1736254918447,12.41351641,213.48,213.38,138.7]
[1736254919437,12.41351641,213.48,213.38,9.35161783]
[1736254921448,12.41351641,213.48,213.39,26.0]
[1736254923316,2.29411641,213.49,213.39,26.0]
[1736254923646,1.5912,213.49,213.42,23.776884]
[1736254925122,1.5912,213.49,213.42,20.0]
[1736254929671,1.5912,213.49,213.42,29.29503173]
[1736254929957,2.28771641,213.54,213.42,29.29503173]
[1736254930162,2.28771641,213.54,213.42,20.0]
[1736254932830,2.28771641,213.54,213.43,23.776884]
[1736254936558,2.28771641,213.54,213.42,23.776884]
[1736254936782,2.28771641,213.54,213.42,33.77452546]
[1736254936934,2.28771641,213.54,213.42,24.47949373]
[1736254937664,2.28771641,213.54,213.45,20.0]
[1736254939165,1.5848,213.54,213.45,20.0]
[1736254939360,1.5848,213.54,213.46,20.0]
[1736254942381,1.5848,213.54,213.46,46.0]
[1736254946798,1.5356,213.62,213.53,20.0]
[1736254947092,12.40641641,213.61,213.53,2.0]
[1736254947270,12.40641641,213.61,213.5,136.7]
[1736254950797,14.28319406,213.61,213.5,136.7]
[1736254951087,12.40641641,213.61,213.5,136.7]
[1736254952301,12.40641641,213.61,213.49,43.776884]
[1736254952501,12.40641641,213.61,213.49,23.776884]
[1736254953589,12.40641641,213.61,213.49,20.0]
[1736254954903,12.40641641,213.61,213.5,20.0]
[1736254956308,12.40641641,213.61,213.48,2.0]
[1736254961595,12.40641641,213.61,213.48,11.29503173]
[1736254962816,12.40641641,213.61,213.49,33.07191573]
[1736254965498,12.40641641,213.61,213.5,9.29503173]
[1736254965914,12.40641641,213.61,213.51,9.29503173]
[1736254966119,12.40641641,213.61,213.52,9.29503173]
[1736254968918,12.40641641,213.61,213.51,9.29503173]
[1736254972122,12.40641641,213.61,213.5,23.776884]
[1736254972412,12.40641641,213.61,213.5,25.776884]
[1736254973622,12.40641641,213.61,213.53,9.29503173]
[1736254973937,12.40641641,213.61,213.5,35.07191573]
[1736254974089,12.40641641,213.61,213.5,25.776884]
[1736254975094,12.40641641,213.61,213.5,2.0]
[1736254976719,12.40641641,213.61,213.49,9.29503173]
[1736254976720,12.40641641,213.61,213.48,9.29503173]
[1736254978015,12.40641641,213.61,213.49,9.29503173]
[1736254978223,12.40641641,213.61,213.5,9.29503173]
[1736254979007,12.40641641,213.61,213.49,9.29503173]
[1736254979424,12.40641641,213.61,213.51,23.776884]
[1736254979717,12.40641641,213.61,213.51,33.07191573]
[1736254981323,12.40641641,213.61,213.51,23.776884]
[1736254981528,12.40641641,213.61,213.51,49.776884]
[1736254983528,12.40641641,213.61,213.52,9.29503173]
[1736254983907,11.7035,213.61,213.51,59.07191573]
[1736254984105,1.5356,213.62,213.54,9.29503173]
[1736254984433,1.5356,213.62,213.55,9.29503173]
[1736254987001,1.5356,213.62,213.54,23.776884]
[1736254987208,1.5356,213.62,213.54,53.07191573]
[1736254987516,1.5356,213.62,213.55,23.776884]
[1736254989008,1.5356,213.62,213.55,33.07191573]
[1736254989716,14.01361641,213.67,213.55,33.07191573]
[1736254990526,14.01361641,213.67,213.55,23.776884]
[1736254990714,14.01361641,213.67,213.53,147.99503173]
[1736254991340,14.01361641,213.67,213.54,23.776884]
[1736254992234,6.4894,213.66,213.54,23.776884]
[1736254992408,0.70291641,213.65,213.54,23.776884]
[1736254993638,11.7019,213.64,213.54,23.776884]
[1736254993811,0.70291641,213.63,213.54,23.776884]
[1736254994237,0.70291641,213.63,213.53,23.776884]
[1736254994733,0.70291641,213.63,213.53,33.07191573]
[1736254994916,11.7019,213.64,213.55,9.29503173]
[1736254996108,11.7019,213.64,213.54,29.29503173]
[1736254996312,11.7019,213.64,213.54,9.29503173]
[1736254996818,11.7019,213.64,213.56,23.776884]
[1736254997128,11.7019,213.64,213.56,9.29503173]
[1736254998948,11.7019,213.64,213.56,23.776884]
[1736254999247,12.40481641,213.64,213.53,33.07191573]
[1736254999424,12.40481641,213.64,213.54,23.776884]
[1736255000145,12.40481641,213.64,213.55,23.776884]
[1736255002123,11.7019,213.64,213.55,23.776884]
[1736255002326,11.7019,213.64,213.55,33.07191573]
[1736255002952,20.0,213.61,213.54,26.0]
[1736255003253,0.70291641,213.6,213.5,7.35161783]
[1736255004434,12.40701641,213.6,213.5,7.35161783]
[1736255004639,12.40701641,213.6,213.49,23.776884]
[1736255004939,12.40701641,213.6,213.49,33.07191573]
[1736255006139,12.40701641,213.6,213.49,23.776884]
[1736255009633,12.40701641,213.6,213.48,23.776884]
[1736255010251,12.40701641,213.6,213.48,33.07191573]
[1736255010439,12.40701641,213.6,213.49,26.0]
[1736255010643,6.5418,213.59,213.48,23.776884]
[1736255010824,0.70291641,213.58,213.48,23.776884]
[1736255013648,0.70291641,213.58,213.48,49.776884]
[1736255024540,0.70291641,213.58,213.48,59.07191573]
[1736255024732,6.5418,213.59,213.5,23.776884]
[1736255024936,6.5418,213.59,213.5,33.07191573]
[1736255026847,6.5418,213.59,213.5,23.776884]
[1736255027158,1.561,213.61,213.52,23.776884]
[1736255027354,1.561,213.61,213.52,33.07191573]
[1736255027856,1.561,213.61,213.52,59.07191573]
[1736255028243,1.561,213.61,213.52,49.776884]
[1736255028445,1.561,213.61,213.52,59.07191573]
[1736255028663,1.561,213.61,213.54,9.29503173]
[1736255029028,11.7009,213.66,213.54,9.29503173]
[1736255029029,11.7009,213.66,213.56,23.776884]
[1736255029233,11.7009,213.66,213.56,33.07191573]
[1736255029956,11.7009,213.66,213.56,23.776884]
[1736255030439,11.7009,213.66,213.55,23.776884]
[1736255031060,11.7009,213.66,213.56,20.0]
[1736255031061,0.70291641,213.65,213.56,20.0]
[1736255031264,12.40381641,213.66,213.56,20.0]
[1736255031965,12.40381641,213.66,213.57,23.776884]
[1736255035148,11.7009,213.66,213.57,23.776884]
[1736255041770,11.7009,213.66,213.55,2.0]
[1736255042080,0.70291641,213.65,213.55,2.0]
[1736255042276,11.7019,213.64,213.55,2.0]
[1736255043455,0.70291641,213.63,213.54,136.7]
[1736255045050,11.7019,213.64,213.54,136.7]
[1736255045256,11.7019,213.64,213.55,23.776884]
[1736255045457,11.7019,213.64,213.53,23.776884]
[1736255046074,11.7019,213.64,213.53,24.47913811]
[1736255046378,11.7019,213.64,213.53,23.776884]
[1736255046966,11.7019,213.64,213.53,24.47911458]
[1736255047969,11.7019,213.64,213.53,33.77414631]
[1736255048168,2.31761641,213.67,213.58,20.0]
[1736255048169,1.6147,213.67,213.58,20.0]
[1736255048374,1.6147,213.67,213.59,25.776884]
[1736255048994,1.6147,213.67,213.59,51.776884]
[1736255050276,1.6147,213.67,213.59,25.776884]
[1736255050779,1.665,213.73,213.62,29.29503173]
[1736255050969,1.665,213.73,213.63,23.776884]
[1736255052464,6.2145,213.75,213.67,23.776884]
[1736255052661,6.2145,213.75,213.67,25.776884]
[1736255053380,0.70291641,213.77,213.67,51.776884]
[1736255053774,0.70291641,213.77,213.66,9.29503173]
[1736255053775,1.5846,213.83,213.69,23.776884]
[1736255053977,1.5846,213.83,213.77,9.29503173]
[1736255054565,1.5846,213.83,213.76,9.29503173]
[1736255056365,1.5846,213.83,213.77,9.29503173]
[1736255056763,1.5846,213.83,213.77,35.29503173]
[1736255059091,0.70291641,213.82,213.73,136.7]
[1736255059262,0.70291641,213.82,213.73,138.7]
[1736255059478,0.70291641,213.82,213.73,147.99503173]
[1736255059766,1.5846,213.83,213.73,147.99503173]
[1736255060090,0.70291641,213.82,213.68,136.7]
[1736255060279,0.70291641,213.82,213.71,11.29503173]
[1736255060479,0.70291641,213.82,213.71,2.0]
[1736255061213,0.70291641,213.82,213.71,25.776884]
[1736255061585,0.70291641,213.82,213.71,35.07191573]
[1736255062506,0.70291641,213.82,213.72,33.07191573]
[1736255064309,0.70291641,213.82,213.73,9.29503173]
[1736255064989,0.70291641,213.82,213.74,23.776884]
[1736255065192,0.70291641,213.82,213.74,9.29503173]
[1736255065591,0.70291641,213.82,213.74,35.29503173]
[1736255066997,0.70291641,213.82,213.75,9.29503173]
[1736255067295,0.70291641,213.82,213.74,9.29503173]
[1736255067699,13.2762,213.83,213.74,9.29503173]
[1736255069314,13.2762,213.83,213.73,9.29503173]
[1736255069507,0.70291641,213.82,213.72,9.29503173]
[1736255069888,0.70291641,213.82,213.73,23.776884]
[1736255070083,0.70291641,213.82,213.73,49.776884]
[1736255070912,0.70291641,213.82,213.73,59.07191573]
[1736255071309,0.70291641,213.82,213.73,49.776884]
[1736255071614,11.6926,213.81,213.72,2.0]
[1736255071815,0.70291641,213.8,213.72,2.0]
[1736255072302,0.70291641,213.8,213.72,35.07191573]
[1736255072809,0.70291641,213.8,213.73,9.29503173]
[1736255073016,11.6926,213.81,213.74,9.29503173]
[1736255074693,11.6926,213.81,213.74,35.29503173]
[1736255074894,11.6926,213.81,213.74,9.29503173]
[1736255077818,11.6926,213.81,213.74,35.29503173]
[1736255078318,11.6926,213.81,213.75,9.29503173]
[1736255078491,2.28751641,213.83,213.75,9.29503173]
[1736255081219,2.28751641,213.83,213.74,9.29503173]
[1736255084318,2.28751641,213.83,213.75,26.0]
[1736255087904,11.692,213.82,213.74,23.776884]
[1736255089024,11.692,213.82,213.73,33.07191573]
[1736255089231,11.692,213.82,213.73,23.776884]
[1736255089433,0.70291641,213.81,213.73,23.776884]
[1736255090212,0.70291641,213.81,213.73,33.07191573]
[1736255090919,12.39491641,213.82,213.74,9.29503173]
[1736255091714,12.39491641,213.82,213.73,33.07191573]
[1736255093339,1.5846,213.83,213.77,9.29503173]
[1736255093555,0.70291641,213.82,213.73,23.776884]
[1736255093920,12.39491641,213.82,213.72,2.0]
[1736255094120,12.39491641,213.82,213.71,20.0]
[1736255094338,12.39491641,213.82,213.66,8.1597]
[1736255094549,6.1071,213.78,213.65,2.0]
[1736255094753,0.70291641,213.77,213.66,35.29503173]
[1736255095251,0.70291641,213.77,213.67,33.07191573]
[1736255096444,11.6953,213.76,213.66,26.0]
[1736255096626,0.70291641,213.75,213.66,26.0]
[1736255096950,0.70291641,213.75,213.67,23.776884]
[1736255097249,0.70291641,213.75,213.65,9.29503173]
[1736255098043,11.6964,213.74,213.65,23.776884]
[1736255098352,0.70291641,213.73,213.65,23.776884]
[1736255098651,0.70291641,213.73,213.61,139.03013702]
[1736255098652,0.70291641,213.73,213.61,145.99503173]
[1736255098850,20.0,213.71,213.59,9.29503173]
[1736255099031,6.95101641,213.7,213.58,9.29503173]
[1736255099424,6.95101641,213.7,213.6,23.776884]
[1736255099952,11.6991,213.69,213.6,23.776884]
[1736255100135,0.70291641,213.68,213.6,49.776884]
[1736255100335,0.70291641,213.68,213.6,26.0]
[1736255100530,2.24941641,213.68,213.6,26.0]
[1736255100853,2.24941641,213.68,213.58,9.29503173]
[1736255101149,2.24941641,213.68,213.59,9.29503173]
[1736255101346,2.24941641,213.68,213.57,9.29503173]
[1736255101524,2.24941641,213.68,213.56,147.99503173]
[1736255101729,11.7002,213.67,213.55,9.29503173]
[1736255101938,0.70291641,213.66,213.55,9.29503173]
[1736255102350,0.70291641,213.66,213.54,9.29503173]
[1736255102552,0.70291641,213.66,213.55,23.776884]
[1736255102747,11.7013,213.65,213.55,23.776884]
[1736255102933,0.70291641,213.64,213.55,23.776884]
[1736255103139,0.70291641,213.64,213.55,9.29503173]
[1736255103652,0.70291641,213.64,213.55,35.29503173]
[1736255104952,0.70291641,213.64,213.56,33.07191573]
[1736255106457,0.70291641,213.64,213.56,23.776884]
[1736255107026,0.70291641,213.64,213.57,9.29503173]
[1736255107231,0.70291641,213.64,213.58,9.29503173]
[1736255107654,11.7013,213.65,213.57,9.29503173]
[1736255107864,20.0,213.66,213.59,9.29503173]
[1736255108661,2.24941641,213.68,213.59,9.29503173]
[1736255109977,2.24941641,213.68,213.59,35.29503173]
[1736255111559,2.24941641,213.68,213.59,26.0]
[1736255113357,1.5465,213.68,213.62,9.29503173]
[1736255115360,1.5465,213.68,213.63,9.29503173]
[1736255115660,1.5465,213.68,213.62,9.29503173]
[1736255116339,1.5465,213.68,213.62,35.29503173]
[1736255116542,1.5465,213.68,213.62,26.0]
[1736255119266,1.5465,213.68,213.6,33.07191573]
[1736255119468,1.5465,213.68,213.6,23.776884]
[1736255122272,0.70291641,213.7,213.62,23.776884]
[1736255122473,11.6975,213.72,213.64,23.776884]
[1736255125660,11.6975,213.72,213.62,33.07191573]
[1736255125861,11.6975,213.72,213.62,59.07191573]
[1736255127674,11.6975,213.72,213.62,49.776884]
[1736255130576,0.70291641,213.71,213.62,49.776884]
[1736255130751,11.6986,213.7,213.62,49.776884]
[1736255131776,20.0,213.73,213.62,49.776884]
[1736255131991,0.70291641,213.72,213.6,11.31503173]
[1736255132277,6.3451,213.71,213.58,136.7]
[1736255132456,0.70291641,213.7,213.58,136.7]
[1736255132776,0.70291641,213.7,213.59,33.07191573]
[1736255133277,11.6991,213.69,213.59,33.07191573]
[1736255133470,11.6991,213.69,213.6,9.29503173]
[1736255135074,11.6991,213.69,213.6,35.29503173]
[1736255135253,0.70291641,213.68,213.6,35.29503173]
[1736255135655,12.40201641,213.69,213.6,35.29503173]
[1736255136367,11.6991,213.69,213.62,9.29503173]
[1736255137378,11.6991,213.69,213.61,9.29503173]
[1736255139279,11.6991,213.69,213.62,35.29503173]
[1736255144202,12.40201641,213.69,213.62,26.0]
[1736255145270,12.40201641,213.69,213.59,23.776884]
[1736255145919,12.40201641,213.69,213.59,33.07191573]
[1736255146399,11.6991,213.69,213.62,9.29503173]
[1736255146701,11.6991,213.69,213.61,9.29503173]
[1736255148394,11.6991,213.69,213.62,26.0]
[1736255148694,11.6991,213.69,213.62,35.29503173]
[1736255153097,11.6991,213.69,213.62,9.29503173]
[1736255153793,11.6991,213.69,213.63,9.29503173]
[1736255154899,11.6991,213.69,213.62,9.29503173]
[1736255156077,11.6991,213.69,213.62,35.29503173]
[1736255158003,11.6991,213.69,213.62,9.29503173]
[1736255160905,11.6991,213.69,213.62,35.29503173]
[1736255162109,11.6991,213.69,213.62,26.0]
[1736255162308,11.6991,213.69,213.62,35.29503173]
[1736255165509,11.6991,213.69,213.62,9.29503173]
[1736255168011,11.6991,213.69,213.59,31.12850183]
[1736255168187,0.70291641,213.68,213.59,31.12850183]
[1736255168390,0.70291641,213.68,213.6,9.29503173]
[1736255169592,11.6991,213.69,213.62,9.29503173]
[1736255169815,11.6991,213.69,213.63,9.29503173]
[1736255170019,0.70291641,213.7,213.63,9.29503173]
[1736255170919,0.70291641,213.7,213.64,9.29503173]
[1736255171139,0.70291641,213.7,213.62,9.29503173]
[1736255173994,0.70291641,213.7,213.62,35.29503173]
[1736255174318,0.70291641,213.7,213.63,9.29503173]
[1736255177698,13.2286,213.67,213.6,7.35161783]
[1736255177900,0.70291641,213.66,213.6,7.35161783]
[1736255178299,0.70291641,213.66,213.59,7.35161783]
[1736255181628,11.7013,213.65,213.59,7.35161783]
[1736255181934,0.70291641,213.64,213.59,7.35161783]
[1736255182315,0.70291641,213.64,213.58,7.35161783]
[1736255183204,0.70291641,213.64,213.57,7.35161783]
[1736255183933,0.70291641,213.64,213.57,16.64664956]
[1736255184427,0.70291641,213.64,213.58,16.64664956]
[1736255186429,2.23131641,213.67,213.59,9.29503173]
[1736255188607,8.3451,213.71,213.61,9.29503173]
[1736255190528,11.6999,213.68,213.61,9.29503173]
[1736255192042,11.6999,213.68,213.6,9.29503173]
[1736255195113,11.6999,213.68,213.6,23.776884]
[1736255197645,11.6999,213.68,213.6,9.29503173]
[1736255199350,11.6999,213.68,213.6,33.07191573]
[1736255200042,11.6999,213.68,213.61,9.29503173]
[1736255200719,18.0432,213.71,213.63,9.29503173]
[1736255203019,18.0432,213.71,213.62,9.29503173]
[1736255204458,11.6981,213.71,213.63,23.776884]
[1736255204667,14.07665304,213.82,213.68,9.29503173]
[1736255204955,14.07665304,213.82,213.7,9.29503173]
[1736255205128,15.93148754,213.82,213.69,9.29503173]
[1736255205820,8.5649345,213.82,213.69,9.29503173]
[1736255206221,10.5649345,213.82,213.69,9.29503173]
[1736255206451,11.6932,213.8,213.69,9.29503173]
[1736255208146,11.6932,213.8,213.7,9.29503173]
[1736255208823,11.6932,213.8,213.69,9.29503173]
[1736255209025,11.6932,213.8,213.68,9.29503173]
[1736255209433,6.7101,213.82,213.69,24.47873626]
[1736255209621,7.1019,213.87,213.78,9.29503173]
[1736255210440,18.7912,213.87,213.78,9.29503173]
[1736255211327,18.7912,213.87,213.77,9.29503173]
[1736255212949,18.7912,213.87,213.74,23.776884]
[1736255213125,20.0,213.82,213.71,2.02]
[1736255213324,20.0,213.82,213.71,11.31503173]
[1736255214163,20.0,213.83,213.71,9.29503173]
[1736255214654,20.0,213.83,213.7,53.07191573]
[1736255215748,11.692,213.82,213.7,53.07191573]
[1736255216053,11.692,213.82,213.7,79.07191573]
[1736255216455,11.692,213.82,213.7,59.07191573]
[1736255217063,11.692,213.82,213.7,26.0]
[1736255217247,20.0,213.78,213.64,9.29503173]
[1736255217438,20.0,213.78,213.66,2.02]
[1736255217755,20.0,213.78,213.67,23.776884]
[1736255217928,20.0,213.78,213.65,9.29503173]
[1736255218132,20.0,213.78,213.66,23.776884]
[1736255218349,11.6948,213.77,213.66,23.776884]
[1736255218563,11.6948,213.77,213.62,0.70191755]
[1736255218564,11.6948,213.77,213.62,9.29503173]
[1736255218777,11.6948,213.77,213.63,2.02]
[1736255218937,6.5801,213.73,213.6,2.02]
[1736255219754,20.0,213.7,213.6,2.02]
[1736255220147,20.0,213.7,213.61,23.776884]
[1736255220148,31.6987,213.7,213.61,23.776884]
[1736255220553,31.6987,213.7,213.6,26.0]
[1736255221667,31.6987,213.7,213.57,2.02]
[1736255222968,31.6987,213.7,213.58,23.776884]
[1736255224670,31.6987,213.7,213.58,49.776884]
[1736255225555,31.6987,213.7,213.58,59.07191573]
[1736255226171,31.6987,213.7,213.58,49.776884]
[1736255227874,31.6987,213.7,213.58,59.07191573]
[1736255231770,31.6987,213.7,213.59,9.29503173]
[1736255231952,31.6987,213.7,213.6,23.776884]
[1736255234952,31.6987,213.7,213.6,49.776884]
[1736255239272,31.6987,213.7,213.57,9.29503173]
[1736255239481,31.6987,213.7,213.56,22.02]
[1736255239790,31.6987,213.7,213.55,11.29503173]
[1736255239993,31.6987,213.7,213.55,2.0]
[1736255240207,31.6987,213.7,213.55,22.0]
[1736255240362,31.6987,213.7,213.55,2.0]
[1736255240693,20.0,213.66,213.56,23.776884]
[1736255240892,11.7013,213.65,213.55,23.776884]
[1736255242295,11.7013,213.65,213.55,49.776884]
[1736255245297,11.7013,213.65,213.55,23.776884]
[1736255248303,11.7013,213.65,213.55,49.776884]
[1736255248703,11.7013,213.65,213.55,59.07191573]
[1736255249984,11.7013,213.65,213.55,49.776884]
[1736255253095,11.7013,213.65,213.55,23.776884]
[1736255254308,11.7013,213.65,213.54,23.776884]
[1736255255702,11.7013,213.65,213.54,33.07191573]
[1736255256105,11.7013,213.65,213.54,59.07191573]
[1736255266496,11.7013,213.65,213.54,49.776884]
[1736255267215,8.936,213.69,213.58,23.776884]
[1736255267216,11.6998,213.68,213.58,23.776884]
[1736255268131,11.6998,213.68,213.6,23.776884]
[1736255268501,11.6998,213.68,213.59,23.776884]
[1736255269212,11.6998,213.68,213.56,20.0]
[1736255269419,11.6998,213.68,213.57,23.776884]
[1736255269726,11.6998,213.68,213.57,33.07191573]
[1736255270241,11.6998,213.68,213.6,23.776884]
[1736255270729,11.6998,213.68,213.58,23.776884]
[1736255273812,11.6998,213.68,213.6,26.0]
[1736255275020,11.6998,213.68,213.56,7.34581559]
[1736255276131,11.6998,213.68,213.57,23.776884]
[1736255277936,11.6998,213.68,213.59,23.776884]
[1736255278505,11.6998,213.68,213.57,23.776884]
[1736255281412,11.6998,213.68,213.57,49.776884]
[1736255282719,35.0992,213.68,213.57,26.0]
[1736255282927,20.0,213.65,213.54,7.34581559]
[1736255283142,20.0,213.65,213.55,23.776884]
[1736255283851,31.7019,213.65,213.55,23.776884]
[1736255285933,31.7019,213.65,213.55,49.776884]
[1736255288838,31.7019,213.65,213.55,23.776884]
[1736255290538,31.7019,213.65,213.54,7.34581559]
[1736255292022,31.7019,213.65,213.54,23.776884]
[1736255298031,31.7019,213.65,213.54,49.776884]
[1736255299755,6.281,213.62,213.52,7.34581559]
[1736255300444,6.281,213.62,213.52,23.776884]
[1736255301255,11.7035,213.61,213.52,23.776884]
[1736255306448,11.7035,213.61,213.52,33.07191573]
[1736255307489,11.7035,213.61,213.52,23.776884]
[1736255308778,11.7035,213.61,213.52,49.776884]
[1736255310670,11.7035,213.61,213.52,59.07191573]
[1736255314195,11.7035,213.61,213.52,49.776884]
[1736255314361,11.7035,213.61,213.52,23.776884]
[1736255323696,11.7035,213.61,213.52,33.07191573]
[1736255324177,11.7035,213.61,213.52,23.776884]
[1736255325397,11.7035,213.61,213.52,49.776884]
[1736255327305,11.7035,213.61,213.52,23.776884]
[1736255329504,11.7035,213.61,213.52,33.07191573]
[1736255332680,11.64717279,213.61,213.52,33.07191573]
[1736255333983,11.64717279,213.61,213.52,40.41773132]
[1736255335516,11.64717279,213.61,213.52,31.12269959]
[1736255344317,12.2812,213.64,213.52,31.12269959]
[1736255344695,12.2812,213.64,213.54,23.776884]
[1736255346718,12.2812,213.64,213.53,7.34581559]
[1736255347514,26.2853,213.63,213.53,7.34581559]
[1736255347721,11.703,213.62,213.53,7.34581559]
[1736255353823,11.703,213.62,213.54,7.34581559]
[1736255357629,11.703,213.62,213.53,31.12269959]
[1736255361529,20.0,213.59,213.53,7.34581559]
[1736255361710,0.5791,213.58,213.53,7.34581559]
[1736255362842,11.7057,213.57,213.51,12.70243522]
[1736255368953,6.3152,213.56,213.51,12.70243522]
[1736255370455,11.7068,213.55,213.51,12.70243522]
[1736255385947,11.7063,213.56,213.51,12.70243522]
[1736255386550,20.0,213.53,213.51,12.70243522]
[1736255388369,11.7082,213.53,213.51,12.70243522]
[1736255465665,11.7082,213.53,213.43,1.5461]
[1736255465853,20.0,213.5,213.43,1.5461]
[1736255466876,11.7101,213.49,213.43,1.5461]
[1736255479594,11.7101,213.49,213.43,27.5461]
[1736255479773,11.7101,213.49,213.43,1.5461]
[1736255479975,23.4159,213.53,213.43,1.5461]
[1736255484376,20.0,213.51,213.43,1.5461]
[1736255485400,20.0,213.51,213.44,23.776884]
[1736255485589,11.7074,213.54,213.44,23.776884]
[1736255494543,11.7074,213.54,213.43,1.5461]
[1736255506353,11.7074,213.54,213.44,23.776884]
[1736255506959,11.7074,213.54,213.44,49.776884]
[1736255507861,11.7074,213.54,213.44,23.776884]
[1736255510865,11.7074,213.54,213.44,49.776884]
[1736255513965,11.7074,213.54,213.44,23.776884]
[1736255515351,11.7074,213.54,213.43,1.5461]
[1736255527170,11.7074,213.54,213.43,27.5461]
[1736255527673,11.7074,213.54,213.43,34.89191559]
[1736255528370,11.7074,213.54,213.43,8.89191559]
[1736255529372,11.7074,213.54,213.44,23.776884]
[1736255530549,11.65102794,213.54,213.44,23.776884]
[1736255533550,11.65102794,213.54,213.44,33.7744539]
[1736255533876,11.7059,213.57,213.46,9.29503173]
[1736255534077,11.7059,213.57,213.48,23.776884]
[1736255534754,11.7059,213.57,213.47,23.776884]
[1736255535580,90.21278157,213.61,213.47,23.776884]
[1736255535764,20.0,213.57,213.47,23.776884]
[1736255536979,20.0,213.58,213.47,23.776884]
[1736255537183,11.7058,213.57,213.47,23.776884]
[1736255543988,11.7058,213.57,213.45,0.70244665]
[1736255544190,11.7058,213.57,213.46,23.776884]
[1736255544909,11.7058,213.57,213.44,7.34581559]
[1736255545494,11.7058,213.57,213.45,23.776884]
[1736255546465,11.7058,213.57,213.45,24.47940881]
[1736255547997,11.7058,213.57,213.45,50.47940881]
[1736255549475,11.7058,213.57,213.45,49.776884]
[1736255550299,11.7058,213.57,213.43,9.59442838]
[1736255550674,11.7058,213.57,213.44,23.776884]
[1736255553200,11.7058,213.57,213.47,26.0]
[1736255564308,11.7058,213.57,213.44,23.776884]
[1736255564511,11.7058,213.57,213.46,23.776884]
[1736255565411,11.7058,213.57,213.46,24.47932231]
[1736255565616,11.7058,213.57,213.46,0.70243831]
[1736255566512,11.7058,213.57,213.45,0.70245227]
[1736255567315,11.7058,213.57,213.49,26.0]
[1736255570525,11.7058,213.57,213.45,0.70245227]
[1736255573631,11.7058,213.57,213.48,26.0]
[1736255584043,11.7068,213.55,213.44,31.82515285]
[1736255586666,11.7068,213.55,213.44,24.47933726]
[1736255586974,11.7068,213.55,213.47,23.776884]
[1736255587475,11.7068,213.55,213.46,23.776884]
[1736255587866,11.7068,213.55,213.45,23.776884]
[1736255589554,11.7068,213.55,213.46,0.70247872]
[1736255590578,11.7068,213.55,213.49,26.0]
[1736255594394,11.7068,213.55,213.5,23.776884]
[1736255596587,11.7068,213.55,213.47,23.776884]
[1736255596765,11.7068,213.55,213.49,23.776884]
[1736255599588,11.7068,213.55,213.49,49.776884]
[1736255602687,11.7068,213.55,213.49,23.776884]
[1736255609185,11.7068,213.55,213.49,49.776884]
[1736255609386,11.7068,213.55,213.49,23.776884]
[1736255622310,11.7068,213.55,213.51,23.776884]
[1736255626227,11.7068,213.55,213.54,26.0]
[1736255627509,11.7052,213.58,213.54,26.0]
[1736255627921,11.7052,213.58,213.5,23.776884]
[1736255628122,11.7052,213.58,213.5,24.47918143]
[1736255629010,11.7052,213.58,213.47,0.70233296]
[1736255629447,11.7052,213.58,213.48,23.776884]
[1736255630342,11.7052,213.58,213.5,23.776884]
[1736255630904,11.7052,213.58,213.54,26.0]
[1736255636646,20.0,213.59,213.52,23.776884]
[1736255637745,31.7047,213.59,213.52,23.776884]
[1736255639515,31.7047,213.59,213.56,26.0]
[1736255649948,31.7047,213.59,213.52,23.776884]
[1736255651357,23.406,213.62,213.52,23.776884]